bitfinex/quotes_SOLUSD_20240921
["timestamp","ask_amount","ask_price","bid_price","bid_amount"]
[1726885378558,23.5870183,145.49,145.41,23.776884]
[1726885380461,23.5870183,145.49,145.41,36.48876157]
[1726885384667,23.5870183,145.49,145.41,36.54855677]
[1726885385267,23.5870183,145.49,145.41,23.8366792]
[1726885385456,23.5870183,145.49,145.41,0.0597952]
[1726885397196,23.5870183,145.49,145.42,36.48876157]
[1726885399689,23.5870183,145.49,145.42,23.776884]
[1726885399866,23.5870183,145.49,145.42,23.8366792]
[1726885410590,23.5870183,145.49,145.42,0.0597952]
[1726885410899,0.25098,145.48,145.42,0.0597952]
[1726885411598,7.18168709,145.47,145.42,0.0597952]
[1726885413507,15.4174,145.45,145.42,0.0597952]
[1726885413676,0.25098,145.44,145.42,0.0597952]
[1726885421896,7.43510144,145.44,145.42,0.0597952]
[1726885424104,0.12549,145.43,145.42,0.0597952]
[1726885424477,15.66838,145.43,145.42,0.0597952]
[1726885425377,35.66838,145.43,145.42,0.0597952]
[1726885436010,15.54289,145.43,145.42,0.0597952]
[1726885436388,35.54289,145.43,145.42,0.0597952]
[1726885440310,7.18412144,145.44,145.42,0.0597952]
[1726885441016,16.0897,145.5,145.42,0.0597952]
[1726885441305,7.18238494,145.47,145.42,0.0597952]
[1726885441505,16.0897,145.5,145.42,0.0597952]
[1726885442010,7.18191538,145.47,145.42,0.0597952]
[1726885442209,16.0897,145.5,145.42,0.0597952]
[1726885442512,7.18191538,145.47,145.42,0.0597952]
[1726885442688,20.25098,145.49,145.42,0.0597952]
[1726885442888,7.18191538,145.47,145.42,0.0597952]
[1726885450222,27.00059,145.46,145.42,0.0597952]
[1726885450521,0.25098,145.43,145.42,0.0597952]
[1726885450721,20.0,145.42,145.37,0.249634]
[1726885450911,0.25098,145.41,145.37,0.249634]
[1726885453523,7.17927071,145.4,145.37,0.249634]
[1726885454118,23.776884,145.36,145.29,0.249634]
[1726885454318,0.12549,145.34,145.29,0.249634]
[1726885457021,20.25098,145.32,145.29,0.249634]
[1726885457318,20.12549,145.33,145.29,0.249634]
[1726885457895,20.12549,145.34,145.29,0.249634]
[1726885463219,0.12549,145.34,145.29,0.249634]
[1726885463610,7.17692245,145.33,145.29,0.249634]
[1726885468533,0.25098,145.32,145.29,0.249634]
[1726885468705,20.25098,145.32,145.29,0.249634]
[1726885470434,27.13238,145.32,145.29,0.249634]
[1726885470821,0.12549,145.3,145.29,0.249634]
[1726885474023,7.30425038,145.3,145.29,0.249634]
[1726885474226,7.17876038,145.3,145.29,0.249634]
[1726885491446,7.17876038,145.3,145.29,23.485634]
[1726885502036,7.17876038,145.3,145.29,6.824834]
[1726885502236,7.17876038,145.3,145.29,0.249634]
[1726885505157,41.33,145.33,145.29,0.249634]
[1726885505158,0.12549,145.32,145.29,0.249634]
[1726885509569,48.18932771,145.33,145.29,0.249634]
[1726885509783,7.18056733,145.33,145.29,0.249634]
[1726885511469,0.12549,145.32,145.29,0.249634]
[1726885512179,7.18056733,145.33,145.29,0.249634]
[1726885512367,0.12549,145.32,145.29,0.249634]
[1726885514766,7.18056733,145.33,145.29,0.249634]
[1726885519081,7.18056733,145.33,145.31,12.71187757]
[1726885519267,7.18056733,145.33,145.32,12.71187757]
[1726885519656,6.8771,145.41,145.32,12.71187757]
[1726885519860,7.17676794,145.39,145.32,12.71187757]
[1726885521172,7.17676794,145.39,145.31,36.48876157]
[1726885522086,7.17676794,145.39,145.32,1.37609596]
[1726885522375,7.17676794,145.39,145.32,14.08797353]
[1726885527087,7.17676794,145.39,145.31,36.48876157]
[1726885529880,7.17676794,145.39,145.32,12.71187757]
[1726885531894,7.17676794,145.39,145.32,14.08797791]
[1726885534577,7.17676794,145.39,145.31,36.48876157]
[1726885538292,7.17676794,145.39,145.33,12.71187757]
[1726885538468,7.17676794,145.39,145.35,12.71187757]
[1726885538673,16.6552,145.42,145.35,12.71187757]
[1726885539000,23.83444572,145.42,145.35,12.71187757]
[1726885539378,23.83444572,145.42,145.36,12.71187757]
[1726885548671,7.17924572,145.42,145.37,14.08754997]
[1726885548899,7.17924572,145.42,145.37,12.71187757]
[1726885555393,7.17924572,145.42,145.36,12.71187757]
[1726885560491,7.17924572,145.42,145.34,12.71187757]
[1726885560684,16.149,145.41,145.31,12.71187757]
[1726885561398,7.18323487,145.4,145.31,12.71187757]
[1726885561810,0.12549,145.39,145.29,0.249634]
[1726885562116,6.14749,145.36,145.29,0.249634]
[1726885562808,6.022,145.36,145.3,12.71187757]
[1726885563010,16.149,145.37,145.31,12.71187757]
[1726885567102,16.149,145.37,145.32,12.71187757]
[1726885567310,29.35423487,145.4,145.33,12.71187757]
[1726885567716,29.35423487,145.4,145.34,12.71187757]
[1726885569100,29.35423487,145.4,145.33,12.71187757]
[1726885569305,29.35423487,145.4,145.33,23.776884]
[1726885572805,29.35423487,145.4,145.31,12.71187757]
[1726885573016,29.35423487,145.4,145.32,23.776884]
[1726885578019,29.35423487,145.4,145.32,36.48876157]
[1726885584531,50.00423487,145.4,145.32,36.48876157]
[1726885584711,29.35423487,145.4,145.32,36.48876157]
[1726885585425,23.33223487,145.4,145.32,36.48876157]
[1726885586231,23.33223487,145.4,145.33,12.71187757]
[1726885587112,7.18323487,145.4,145.33,12.71187757]
[1726885592531,7.18323487,145.4,145.31,22.0398]
[1726885592830,0.12549,145.39,145.31,22.0398]
[1726885593435,41.45549,145.39,145.31,22.0398]
[1726885593664,0.25098,145.37,145.29,0.249634]
[1726885595168,48.45998,145.37,145.29,0.249634]
[1726885595359,20.0,145.36,145.29,0.249634]
[1726885598067,27.8336686,145.38,145.3,12.71187757]
[1726885598068,7.1836686,145.38,145.3,12.71187757]
[1726885598363,7.1836686,145.38,145.33,12.71187757]
[1726885598862,29.5962,145.43,145.33,12.71187757]
[1726885599251,7.18294347,145.4,145.33,12.71187757]
[1726885599459,41.33,145.42,145.32,12.71187757]
[1726885599847,7.1830741,145.4,145.31,12.71187757]
[1726885604172,0.12549,145.39,145.3,23.776884]
[1726885604362,0.12549,145.39,145.3,36.48876157]
[1726885604770,0.25098,145.39,145.3,36.48876157]
[1726885608675,0.25098,145.39,145.32,12.71187757]
[1726885609582,48.5130741,145.4,145.32,12.71187757]
[1726885614558,7.1830741,145.4,145.32,12.71187757]
[1726885617666,7.1830741,145.4,145.3,36.48876157]
[1726885618679,7.1830741,145.4,145.32,12.71187757]
[1726885619264,48.5130741,145.4,145.3,23.776884]
[1726885619473,48.5130741,145.4,145.32,23.776884]
[1726885620371,0.12549,145.39,145.29,13.08700157]
[1726885620578,0.25098,145.39,145.3,23.776884]
[1726885620982,0.25098,145.39,145.31,12.71187757]
[1726885621280,7.18103567,145.38,145.31,12.71187757]
[1726885622079,7.18103567,145.38,145.32,25.15310204]
[1726885622276,7.18103567,145.38,145.32,23.776884]
[1726885623963,7.18103567,145.38,145.33,12.71187757]
[1726885624663,7.18103567,145.38,145.34,23.776884]
[1726885624866,22.7197,145.43,145.34,23.776884]
[1726885625180,27.17953699,145.42,145.34,36.48876157]
[1726885625755,27.17953699,145.42,145.33,23.776884]
[1726885625958,0.12549,145.41,145.33,23.776884]
[1726885626985,0.25098,145.41,145.32,12.71187757]
[1726885630889,68.50953699,145.42,145.34,12.71187757]
[1726885630890,27.17953699,145.42,145.34,12.71187757]
[1726885631098,7.17953699,145.42,145.36,12.71187757]
[1726885631468,7.17953699,145.42,145.37,12.71187757]
[1726885639983,7.17953699,145.42,145.35,12.71187757]
[1726885640396,7.17953699,145.42,145.36,23.776884]
[1726885644588,7.17953699,145.42,145.37,12.71187757]
[1726885644994,7.17953699,145.42,145.38,23.776884]
[1726885646712,7.17953699,145.42,145.35,12.83736757]
[1726885647211,7.17953699,145.42,145.36,23.776884]
[1726885647792,7.17953699,145.42,145.35,12.71187757]
[1726885648991,7.17953699,145.42,145.36,23.776884]
[1726885651213,7.17953699,145.42,145.37,12.71187757]
[1726885651394,7.17953699,145.42,145.4,12.71187757]
[1726885651799,7.17953699,145.42,145.38,12.71187757]
[1726885653508,7.17953699,145.42,145.39,1.37544676]
[1726885653821,7.17953699,145.42,145.38,12.71187757]
[1726885658925,7.17953699,145.42,145.39,1.37544839]
[1726885659109,7.17953699,145.42,145.38,12.71187757]
[1726885663027,7.17953699,145.42,145.37,0.12549]
[1726885663214,7.17953699,145.42,145.38,23.776884]
[1726885665024,7.17953699,145.42,145.33,20.0]
[1726885665327,7.17953699,145.42,145.34,12.71187757]
[1726885666427,7.17953699,145.42,145.35,23.902374]
[1726885673044,7.17953699,145.42,145.35,12.83736757]
[1726885673530,7.17953699,145.42,145.36,23.776884]
[1726885677743,7.17953699,145.42,145.38,12.71187757]
[1726885678737,7.17953699,145.42,145.37,12.83736757]
[1726885678943,7.17953699,145.42,145.36,36.48876157]
[1726885680348,7.17953699,145.42,145.37,12.71187757]
[1726885683628,7.17953699,145.42,145.38,12.71187757]
[1726885685553,7.17953699,145.42,145.37,12.83736757]
[1726885685973,7.17953699,145.42,145.38,23.776884]
[1726885686949,7.17953699,145.42,145.37,12.71187757]
[1726885696659,7.17953699,145.42,145.35,20.0]
[1726885696843,7.17953699,145.42,145.36,23.776884]
[1726885697155,7.17953699,145.42,145.35,20.0]
[1726885697367,13.72853699,145.42,145.35,43.776884]
[1726885698746,13.72853699,145.42,145.35,56.48876157]
[1726885701969,13.72853699,145.42,145.35,43.776884]
[1726885705159,13.72853699,145.42,145.35,56.48876157]
[1726885706475,13.72853699,145.42,145.38,12.71187757]
[1726885706677,7.17953699,145.42,145.38,12.71187757]
[1726885708770,7.17953699,145.42,145.39,12.71187757]
[1726885710256,0.249634,145.44,145.41,12.71187757]
[1726885710450,0.249634,145.44,145.43,12.71187757]
[1726885710758,0.249634,145.44,145.43,36.48876157]
[1726885715172,0.249634,145.44,145.43,36.61425157]
[1726885717682,0.249634,145.44,145.43,56.73974157]
[1726885730200,0.249634,145.48,145.44,44.027864]
[1726885730396,0.249634,145.48,145.47,12.71187757]
[1726885730693,0.249634,145.48,145.47,36.48876157]
[1726885736715,0.249634,145.48,145.45,12.71187757]
[1726885737887,0.249634,145.48,145.46,12.71187757]
[1726885738597,0.249634,145.48,145.41,24.027864]
[1726885738598,0.249634,145.48,145.47,12.71187757]
[1726885740709,0.249634,145.48,145.46,12.71187757]
[1726885740900,0.249634,145.48,145.39,13.84161946]
[1726885741094,0.249634,145.48,145.41,12.71187757]
[1726885741407,0.249634,145.48,145.42,12.71187757]
[1726885741585,0.249634,145.48,145.41,12.71187757]
[1726885746309,0.249634,145.48,145.42,36.48876157]
[1726885750425,0.249634,145.48,145.43,12.71187757]
[1726885750603,0.249634,145.48,145.45,12.71187757]
[1726885750918,0.249634,145.48,145.46,12.71187757]
[1726885751720,0.249634,145.48,145.47,14.08662763]
[1726885751910,0.249634,145.48,145.47,12.71187757]
[1726885753213,0.249634,145.48,145.47,36.48876157]
[1726885755419,0.249634,145.48,145.45,12.71187757]
[1726885755611,0.249634,145.48,145.46,23.776884]
[1726885756213,0.249634,145.48,145.41,20.0]
[1726885756411,0.249634,145.48,145.45,12.71187757]
[1726885757421,0.249634,145.48,145.46,23.776884]
[1726885760308,0.249634,145.48,145.44,12.71187757]
[1726885761933,0.249634,145.48,145.43,12.71187757]
[1726885762227,0.249634,145.48,145.44,23.776884]
[1726885762466,0.249634,145.48,145.44,12.71187757]
[1726885763339,0.249634,145.48,145.42,24.027864]
[1726885763340,0.249634,145.48,145.43,12.71187757]
[1726885763500,0.249634,145.48,145.44,23.776884]
[1726885764723,0.249634,145.48,145.44,36.48876157]
[1726885770315,0.249634,145.48,145.44,23.776884]
[1726885770521,0.249634,145.48,145.42,23.902374]
[1726885770739,0.249634,145.48,145.43,12.71187757]
[1726885775850,0.249634,145.48,145.42,36.61425157]
[1726885779149,0.249634,145.48,145.42,23.902374]
[1726885779356,0.249634,145.48,145.42,36.61425157]
[1726885794780,0.249634,145.48,145.47,12.71187757]
[1726885800584,0.249634,145.48,145.42,23.902374]
[1726885800585,0.249634,145.48,145.43,20.0]
[1726885801091,0.249634,145.48,145.42,12.71187757]
[1726885801292,0.249634,145.48,145.45,12.71187757]
[1726885804967,0.249634,145.48,145.45,23.776884]
[1726885805400,0.249634,145.48,145.46,23.776884]
[1726885806077,0.249634,145.48,145.42,0.12549]
[1726885806281,0.249634,145.48,145.41,20.0]
[1726885806608,0.249634,145.48,145.37,15.0073]
[1726885806609,0.249634,145.48,145.4,12.71187757]
[1726885806894,0.249634,145.48,145.41,12.71187757]
[1726885807264,0.249634,145.48,145.42,12.71187757]
[1726885807465,0.249634,145.48,145.4,20.0]
[1726885807694,0.249634,145.48,145.42,23.776884]
[1726885812004,0.249634,145.48,145.44,36.48876157]
[1726885815104,0.249634,145.48,145.44,23.776884]
[1726885815403,0.249634,145.48,145.38,20.0]
[1726885815710,0.249634,145.48,145.41,12.71187757]
[1726885816014,7.43043896,145.48,145.41,12.71187757]
[1726885816986,7.43043896,145.48,145.42,23.776884]
[1726885818095,7.43043896,145.48,145.42,36.48876157]
[1726885818308,0.249634,145.48,145.42,36.48876157]
[1726885825890,0.249634,145.48,145.44,23.776884]
[1726885829026,0.249634,145.48,145.41,0.12549]
[1726885829195,0.249634,145.48,145.42,23.776884]
[1726885830923,0.249634,145.48,145.42,36.48876157]
[1726885834304,0.249634,145.48,145.42,23.776884]
[1726885834802,0.249634,145.48,145.4,12.71187757]
[1726885835121,0.249634,145.48,145.41,23.776884]
[1726885836419,7.18125677,145.47,145.41,23.776884]
[1726885836805,16.5674,145.46,145.34,5.64018897]
[1726885837116,16.5674,145.46,145.37,12.71187757]
[1726885837619,6.604,145.45,145.37,12.71187757]
[1726885837935,6.604,145.45,145.36,12.71187757]
[1726885838292,6.604,145.45,145.33,22.162734]
[1726885838293,68.524,145.45,145.33,22.162734]
[1726885838619,68.524,145.45,145.33,0.249634]
[1726885838620,16.5674,145.43,145.33,0.249634]
[1726885838809,16.5674,145.43,145.33,12.96151157]
[1726885839301,16.5674,145.43,145.34,12.71187757]
[1726885839503,16.5674,145.43,145.35,12.71187757]
[1726885839710,16.5674,145.43,145.37,12.71187757]
[1726885841016,16.5674,145.43,145.38,12.71187757]
[1726885843928,16.5674,145.43,145.37,12.71187757]
[1726885847500,16.5674,145.43,145.38,12.71187757]
[1726885851113,16.5674,145.43,145.37,12.71187757]
[1726885853537,16.5674,145.43,145.34,0.25098]
[1726885853722,16.5674,145.43,145.4,12.71187757]
[1726885854537,7.18170308,145.46,145.42,12.71187757]
[1726885854713,16.0438,145.47,145.45,12.71187757]
[1726885854903,0.249634,145.48,145.45,12.71187757]
[1726885855317,0.249634,145.48,145.46,14.0866844]
[1726885855608,0.249634,145.48,145.47,12.71187757]
[1726885856725,0.249634,145.48,145.46,12.71187757]
[1726885857741,0.249634,145.48,145.47,12.71187757]
[1726885860435,0.249634,145.48,145.45,12.71187757]
[1726885863423,0.249634,145.48,145.47,12.71187757]
[1726885867046,0.249634,145.48,145.47,56.73974157]
[1726885869428,0.249634,145.48,145.47,43.902374]
[1726885869628,0.249634,145.48,145.47,56.61425157]
[1726885872041,0.249634,145.48,145.47,43.776884]
[1726885872353,0.249634,145.48,145.44,15.6258]
[1726885872546,0.249634,145.48,145.46,12.71187757]
[1726885872845,0.249634,145.48,145.44,15.6258]
[1726885873056,0.249634,145.48,145.45,12.71187757]
[1726885873224,0.249634,145.48,145.44,14.08686138]
[1726885873823,0.249634,145.48,145.4,15.6258]
[1726885874042,0.249634,145.48,145.45,12.71187757]
[1726885874249,0.249634,145.48,145.46,12.71187757]
[1726885875341,0.249634,145.48,145.45,12.71187757]
[1726885875539,0.249634,145.48,145.46,23.776884]
[1726885875947,0.249634,145.48,145.45,23.776884]
[1726885878155,0.249634,145.48,145.45,36.48876157]
[1726885886857,0.249634,145.48,145.45,23.776884]
[1726885901275,0.249634,145.48,145.47,36.48876157]
[1726885901470,0.249634,145.48,145.47,56.73974157]
[1726885902956,0.249634,145.48,145.47,56.61425157]
[1726885904288,0.249634,145.48,145.47,56.73974157]
[1726885904657,0.249634,145.48,145.47,58.11409193]
[1726885905185,0.3252314,145.53,145.48,44.027864]
[1726885905390,0.3252314,145.53,145.52,36.48876157]
[1726885911467,0.3252314,145.53,145.52,36.73974157]
[1726885912485,0.3252314,145.53,145.52,58.11363305]
[1726885913089,0.3252314,145.53,145.52,56.73974157]
[1726885914698,0.3050099,145.57,145.53,44.027864]
[1726885914896,0.3050099,145.57,145.56,12.71187757]
[1726885915083,0.3050099,145.57,145.56,37.9879152]
[1726885915294,0.3050099,145.57,145.56,57.9879152]
[1726885915781,0.3050099,145.57,145.56,58.1134052]
[1726885917897,0.0951037,145.6,145.57,44.027864]
[1726885918102,0.0951037,145.6,145.59,36.48876157]
[1726885918474,0.0951037,145.6,145.59,58.11313217]
[1726885918875,0.0951037,145.6,145.59,44.027864]
[1726885919077,0.0951037,145.6,145.59,56.61425157]
[1726885919580,0.0951037,145.6,145.59,23.776884]
[1726885919796,0.0951037,145.6,145.54,12.71187757]
[1726885921703,0.0951037,145.6,145.55,23.776884]
[1726885932307,15.9864,145.59,145.51,44.027864]
[1726885932604,15.9864,145.59,145.51,36.73974157]
[1726885932907,15.9864,145.59,145.55,12.71187757]
[1726885933202,15.9864,145.59,145.56,23.776884]
[1726885935503,15.9864,145.59,145.55,12.71187757]
[1726885936304,15.9864,145.59,145.54,23.776884]
[1726885938212,15.9864,145.59,145.55,12.71187757]
[1726885940810,15.9864,145.59,145.54,23.776884]
[1726885943794,15.9864,145.59,145.55,12.71187757]
[1726885944989,0.0951037,145.6,145.57,12.71187757]
[1726885945282,0.0951037,145.6,145.58,1.37363046]
[1726885945586,0.0951037,145.6,145.56,12.71187757]
[1726885946389,0.0951037,145.6,145.57,1.3737913]
[1726885946790,0.0951037,145.6,145.56,12.71187757]
[1726885950913,0.0951037,145.6,145.54,12.71187757]
[1726885952112,0.0951037,145.6,145.56,12.71187757]
[1726885956302,0.0951037,145.6,145.55,23.776884]
[1726885956815,0.0951037,145.6,145.54,12.71187757]
[1726885957693,0.0951037,145.6,145.53,0.12549]
[1726885957891,0.0951037,145.6,145.53,20.0]
[1726885958304,0.0951037,145.6,145.52,36.48876157]
[1726885958505,0.3460837,145.6,145.51,12.71187757]
[1726885958818,0.3460837,145.6,145.46,29.66641623]
[1726885958819,15.6868,145.59,145.46,29.66641623]
[1726885959024,15.6868,145.59,145.51,12.71187757]
[1726885962215,15.6868,145.59,145.52,36.48876157]
[1726885962418,15.6868,145.59,145.55,12.71187757]
[1726885962629,15.6868,145.59,145.56,1.3739222]
[1726885963418,15.6868,145.59,145.56,14.08579977]
[1726885963625,15.6868,145.59,145.56,12.71187757]
[1726885964806,0.0951037,145.6,145.56,12.71187757]
[1726885965002,0.0951037,145.6,145.57,12.71187757]
[1726885967831,0.0951037,145.6,145.58,14.08567559]
[1726885968003,0.0951037,145.6,145.58,12.71187757]
[1726885969134,0.0951037,145.6,145.57,12.71187757]
[1726885975438,0.0951037,145.6,145.58,14.08551981]
[1726885975747,0.0951037,145.6,145.59,1.37355493]
[1726885976245,0.0951037,145.6,145.58,12.71187757]
[1726885980239,0.0951037,145.6,145.59,56.73974157]
[1726885980630,0.0951037,145.6,145.59,23.776884]
[1726885980841,0.0951037,145.6,145.54,24.027864]
[1726885981044,0.0951037,145.6,145.54,23.902374]
[1726885981221,0.0951037,145.6,145.57,12.71187757]
[1726885982151,0.0951037,145.6,145.58,12.71187757]
[1726885987847,0.0951037,145.6,145.59,14.08554633]
[1726885988049,0.0951037,145.6,145.59,12.71187757]
[1726885988222,0.0951037,145.6,145.59,36.48876157]
[1726885988545,0.0951037,145.6,145.59,56.48876157]
[1726885990638,0.0951037,145.6,145.59,56.73974157]
[1726885990938,0.249634,145.62,145.59,56.73974157]
[1726885990939,0.249634,145.62,145.6,44.027864]
[1726885991136,0.249634,145.62,145.61,57.8619674]
[1726885991717,0.249634,145.62,145.61,56.48876157]
[1726885993449,0.249634,145.62,145.61,56.61425157]
[1726885994326,0.249634,145.62,145.61,56.73974157]
[1726885995535,0.249634,145.62,145.58,6.5041]
[1726885995536,0.065717,145.64,145.63,56.73974157]
[1726885995736,0.065717,145.64,145.63,58.11266917]
[1726885995937,0.065717,145.64,145.63,56.73974157]
[1726886000061,0.065717,145.64,145.63,58.11255459]
[1726886005547,0.065717,145.64,145.62,20.0]
[1726886005763,0.065717,145.64,145.63,20.0]
[1726886006160,0.065717,145.64,145.63,32.71187757]
[1726886007369,0.065717,145.64,145.63,32.83736757]
[1726886008058,0.065717,145.64,145.63,56.61425157]
[1726886009064,0.065717,145.64,145.63,43.776884]
[1726886009248,0.065717,145.64,145.61,12.71187757]
[1726886010573,0.065717,145.64,145.62,23.776884]
[1726886011954,0.065717,145.64,145.62,36.48876157]
[1726886012971,0.065717,145.64,145.63,58.11299714]
[1726886013150,0.065717,145.64,145.63,56.73974157]
[1726886016590,0.065717,145.64,145.63,44.027864]
[1726886016871,0.065717,145.64,145.63,56.48876157]
[1726886017064,0.065717,145.64,145.63,56.73974157]
[1726886018371,0.249634,145.66,145.64,44.027864]
[1726886018675,0.249634,145.66,145.65,58.11254324]
[1726886019169,0.249634,145.66,145.65,56.73974157]
[1726886025752,0.249634,145.66,145.65,56.61425157]
[1726886025956,0.249634,145.66,145.65,56.48876157]
[1726886029959,0.249634,145.66,145.65,56.73974157]
[1726886030260,0.249634,145.66,145.65,44.027864]
[1726886030467,0.249634,145.66,145.65,56.73974157]
[1726886030673,0.249634,145.66,145.65,56.61425157]
[1726886031664,0.249634,145.66,145.65,43.902374]
[1726886031871,0.249634,145.66,145.65,56.61425157]
[1726886035677,0.249634,145.66,145.65,56.73974157]
[1726886038864,0.249634,145.66,145.65,44.027864]
[1726886039064,0.249634,145.66,145.65,56.61425157]
[1726886040275,0.249634,145.66,145.65,56.73974157]
[1726886041490,0.249634,145.66,145.58,28.89164058]
[1726886041672,0.249634,145.66,145.6,12.71187757]
[1726886042269,0.249634,145.66,145.58,22.9051]
[1726886042469,0.249634,145.66,145.61,12.71187757]
[1726886042785,0.249634,145.66,145.58,22.9051]
[1726886043287,0.249634,145.66,145.64,12.71187757]
[1726886044492,0.249634,145.66,145.63,12.71187757]
[1726886044898,0.249634,145.66,145.64,20.0]
[1726886049393,0.249634,145.66,145.63,12.71187757]
[1726886049894,0.249634,145.66,145.64,20.0]
[1726886050095,0.249634,145.66,145.64,12.71187757]
[1726886051909,0.249634,145.66,145.6,20.0]
[1726886052107,0.249634,145.66,145.59,24.027864]
[1726886052108,15.8734,145.65,145.59,12.71187757]
[1726886052392,15.8734,145.65,145.6,20.0]
[1726886054098,15.8734,145.65,145.59,12.71187757]
[1726886055391,15.8734,145.65,145.6,12.71187757]
[1726886056082,15.8734,145.65,145.59,12.71187757]
[1726886056279,15.8734,145.65,145.58,12.71187757]
[1726886056777,6.2117,145.64,145.55,20.0]
[1726886056985,15.8734,145.63,145.53,7.17255266]
[1726886057303,0.25098,145.62,145.52,12.71187757]
[1726886057978,0.25098,145.62,145.54,12.71187757]
[1726886058175,15.8734,145.63,145.55,12.71187757]
[1726886058803,15.8734,145.63,145.54,12.71187757]
[1726886059483,0.12549,145.62,145.54,12.71187757]
[1726886060103,15.8734,145.61,145.52,12.83736757]
[1726886060575,15.8734,145.61,145.52,20.12549]
[1726886060774,0.12549,145.58,145.52,0.12549]
[1726886061586,0.25098,145.58,145.51,0.249634]
[1726886061811,15.4356,145.57,145.51,0.249634]
[1726886062100,0.25098,145.56,145.51,0.249634]
[1726886062677,15.4356,145.57,145.51,12.96151157]
[1726886062875,15.4356,145.57,145.52,12.71187757]
[1726886067800,15.4356,145.57,145.51,0.249634]
[1726886067983,15.4356,145.57,145.52,12.71187757]
[1726886068589,15.4356,145.57,145.51,0.249634]
[1726886071389,15.4356,145.57,145.51,12.96151157]
[1726886072184,0.25098,145.56,145.51,0.249634]
[1726886074106,22.61036041,145.57,145.51,0.249634]
[1726886075404,22.61036041,145.57,145.51,12.96151157]
[1726886078807,22.61036041,145.57,145.51,0.249634]
[1726886079012,22.61036041,145.57,145.53,12.71187757]
[1726886079307,15.4356,145.57,145.52,12.71187757]
[1726886095321,15.4356,145.57,145.51,0.249634]
[1726886095514,15.4356,145.57,145.51,20.249634]
[1726886095709,15.4356,145.57,145.51,32.96151157]
[1726886098010,15.4356,145.57,145.52,12.71187757]
[1726886100728,15.4356,145.57,145.51,20.249634]
[1726886101110,15.4356,145.57,145.51,0.249634]
[1726886102215,15.4356,145.57,145.52,12.71187757]
[1726886105719,15.4356,145.57,145.51,0.249634]
[1726886106421,15.4356,145.57,145.51,12.96151157]
[1726886110319,15.4356,145.57,145.51,0.249634]
[1726886110720,15.4356,145.57,145.51,20.249634]
[1726886110921,39.447284,145.55,145.51,0.249634]
[1726886111131,0.25098,145.54,145.51,0.249634]
[1726886111438,7.42725585,145.54,145.51,0.249634]
[1726886112528,15.6418,145.53,145.51,0.249634]
[1726886112736,0.12549,145.52,145.51,0.249634]
[1726886114019,0.25098,145.52,145.51,0.249634]
[1726886114222,0.25098,145.52,145.46,0.249634]
[1726886114224,15.6418,145.51,145.46,0.249634]
[1726886114534,6.50218,145.47,145.46,0.249634]
[1726886114836,30.279064,145.47,145.46,0.249634]
[1726886117027,39.669664,145.46,145.42,0.315351]
[1726886121734,24.027864,145.44,145.42,0.315351]
[1726886123227,65.287864,145.43,145.42,0.315351]
[1726886123531,7.18111284,145.45,145.42,0.315351]
[1726886124850,0.25098,145.44,145.42,0.315351]
[1726886129952,7.18111284,145.45,145.42,0.315351]
[1726886136355,0.25098,145.44,145.42,0.315351]
[1726886137783,0.12549,145.44,145.42,0.315351]
[1726886138062,7.18111284,145.45,145.42,0.315351]
[1726886140962,15.1177,145.5,145.42,0.315351]
[1726886141136,22.2724777,145.5,145.42,13.02722857]
[1726886142361,0.25098,145.49,145.42,13.02722857]
[1726886142661,22.2724777,145.5,145.42,13.02722857]
[1726886143270,7.1547777,145.5,145.44,12.71187757]
[1726886145871,7.1547777,145.5,145.43,19.29927757]
[1726886146040,0.25098,145.49,145.43,6.5874]
[1726886149469,39.145564,145.49,145.42,0.315351]
[1726886150640,80.405564,145.49,145.42,0.315351]
[1726886151353,101.015564,145.49,145.42,0.315351]
[1726886151877,0.25098,145.47,145.42,0.315351]
[1726886153367,41.51098,145.47,145.42,0.315351]
[1726886153561,0.25098,145.47,145.42,0.315351]
[1726886153746,7.15466792,145.48,145.42,0.315351]
[1726886155563,7.15466792,145.48,145.42,13.02722857]
[1726886155761,7.15466792,145.48,145.44,12.71187757]
[1726886155970,7.15466792,145.48,145.46,12.71187757]
[1726886156140,15.2376,145.52,145.46,12.71187757]
[1726886156754,7.15197248,145.53,145.48,12.71187757]
[1726886157050,15.2376,145.56,145.48,12.71187757]